[Event "Late-Titled-Tuesday-Blitz-January-23-2024"]
[Site "Chess.com"]
[Date "2024.01.23"]
[Round "6"]
[White "IngOscarArdila"]
[Black "ProChessWICTH"]
[Result "0-1"]
[WhiteElo "2369"]
[BlackElo "2518"]
[TimeControl "180+1"]
[EndTime "15:06:53 PST"]
[Termination "ProChessWICTH won on time"]

1. d4 {[%clk 0:03:00.2]} 1... Nf6 {[%clk 0:02:59.6]} 2. c4 {[%clk 0:03:00.6]}
2... g6 {[%clk 0:02:59.8]} 3. Nc3 {[%clk 0:03:00.8]} 3... d5 {[%clk 0:03:00.4]}
4. Nf3 {[%clk 0:03:00.5]} 4... Bg7 {[%clk 0:02:59.9]} 5. e3 {[%clk 0:02:59.9]}
5... O-O {[%clk 0:02:59.9]} 6. Be2 {[%clk 0:03:00.2]} 6... c5 {[%clk 0:02:56.5]}
7. O-O {[%clk 0:02:58]} 7... cxd4 {[%clk 0:02:55.1]} 8. Nxd4 {[%clk 0:02:57.8]}
8... Nc6 {[%clk 0:02:51.7]} 9. Nxc6 {[%clk 0:02:57.8]} 9... bxc6 {[%clk
0:02:52.6]} 10. Qa4 {[%clk 0:02:55.1]} 10... Bb7 {[%clk 0:02:50.8]} 11. Rd1
{[%clk 0:02:54]} 11... Qc7 {[%clk 0:02:40.3]} 12. Bf3 {[%clk 0:02:52.7]} 12...
Rfd8 {[%clk 0:02:37.2]} 13. Bd2 {[%clk 0:02:47.7]} 13... e5 {[%clk 0:02:34.8]}
14. cxd5 {[%clk 0:02:44.2]} 14... cxd5 {[%clk 0:02:34.5]} 15. Rac1 {[%clk
0:02:44.2]} 15... Qe7 {[%clk 0:02:28.5]} 16. Nb5 {[%clk 0:02:41.7]} 16... a6
{[%clk 0:02:07.6]} 17. Nc7 {[%clk 0:02:17.4]} 17... Rab8 {[%clk 0:01:17.6]} 18.
Ba5 {[%clk 0:01:58]} 18... Rd7 {[%clk 0:01:00.4]} 19. Bb4 {[%clk 0:01:25.3]}
19... Qd8 {[%clk 0:00:57.2]} 20. Ba5 {[%clk 0:01:24.9]} 20... Qe7 {[%clk
0:00:51.5]} 21. Bb4 {[%clk 0:01:23.9]} 21... Qd8 {[%clk 0:00:49.3]} 22. Ba5
{[%clk 0:01:23.3]} 22... Qf8 {[%clk 0:00:27.4]} 23. h3 {[%clk 0:00:57.6]} 23...
e4 {[%clk 0:00:20.6]} 24. Be2 {[%clk 0:00:56]} 24... Qd6 {[%clk 0:00:18]} 25.
Bb4 {[%clk 0:00:44.5]} 25... Qb6 {[%clk 0:00:13]} 26. Qa3 {[%clk 0:00:43.6]}
26... Bc8 {[%clk 0:00:08.5]} 27. Ba5 {[%clk 0:00:32.1]} 27... Qxb2 {[%clk
0:00:08.2]} 28. Qxb2 {[%clk 0:00:30.7]} 28... Rxb2 {[%clk 0:00:09.1]} 29. Bxa6
{[%clk 0:00:30.9]} 29... Bxa6 {[%clk 0:00:09]} 30. Nxa6 {[%clk 0:00:31.1]} 30...
Ra7 {[%clk 0:00:06.2]} 31. Rc8+ {[%clk 0:00:25.5]} 31... Bf8 {[%clk 0:00:05.5]}
32. Bc3 {[%clk 0:00:25.6]} 32... Rc2 {[%clk 0:00:03.4]} 33. Nb4 {[%clk 0:00:20]}
33... Rxc3 {[%clk 0:00:03.6]} 34. Rxc3 {[%clk 0:00:19.5]} 34... Bxb4 {[%clk
0:00:04.2]} 35. Rc2 {[%clk 0:00:19.1]} 35... Be7 {[%clk 0:00:04.6]} 36. Rb1
{[%clk 0:00:18.7]} 36... Bd6 {[%clk 0:00:04.8]} 37. Kf1 {[%clk 0:00:18.2]} 37...
Kf8 {[%clk 0:00:04.8]} 38. g4 {[%clk 0:00:17.6]} 38... Ke7 {[%clk 0:00:04.9]}
39. g5 {[%clk 0:00:17.8]} 39... Nd7 {[%clk 0:00:05.4]} 40. Rb5 {[%clk
0:00:17.9]} 40... Ke6 {[%clk 0:00:05.3]} 41. Rcb2 {[%clk 0:00:15.1]} 41... Ra3
{[%clk 0:00:05.2]} 42. Ke2 {[%clk 0:00:15]} 42... Ne5 {[%clk 0:00:05.2]} 43.
R5b3 {[%clk 0:00:14.9]} 43... Ra4 {[%clk 0:00:05]} 44. Rb7 {[%clk 0:00:14]}
44... Nd3 {[%clk 0:00:05.1]} 45. Rc2 {[%clk 0:00:13.7]} 45... Nb4 {[%clk
0:00:05.3]} 46. Rb2 {[%clk 0:00:11.9]} 46... Nxa2 {[%clk 0:00:03.1]} 47. h4
{[%clk 0:00:09.2]} 47... Nb4 {[%clk 0:00:03.5]} 48. Rb6 {[%clk 0:00:07.6]} 48...
Nd3 {[%clk 0:00:03.9]} 49. Rc2 {[%clk 0:00:07.5]} 49... Ra3 {[%clk 0:00:03.6]}
50. Rcc6 {[%clk 0:00:07.2]} 50... Ra2+ {[%clk 0:00:03.8]} 51. Kd1 {[%clk
0:00:06.5]} 51... Nb2+ {[%clk 0:00:03.7]} 52. Kc1 {[%clk 0:00:06.5]} 52... Nc4
{[%clk 0:00:04.2]} 53. Rb7 {[%clk 0:00:06.3]} 53... Rxf2 {[%clk 0:00:04.1]} 54.
Rc8 {[%clk 0:00:06.1]} 54... Ke5 {[%clk 0:00:02.8]} 55. Re8+ {[%clk 0:00:05.7]}
55... Kf5 {[%clk 0:00:02.8]} 56. Rxf7+ {[%clk 0:00:05.2]} 56... Kg4 {[%clk
0:00:02.9]} 57. Rxf2 {[%clk 0:00:06.1]} 57... Nxe3 {[%clk 0:00:03]} 58. Re2
{[%clk 0:00:06.2]} 58... Bf4 {[%clk 0:00:03.3]} 59. Ra2 {[%clk 0:00:04.8]} 59...
Nf5+ {[%clk 0:00:03.2]} 60. Kc2 {[%clk 0:00:04.6]} 60... Nxh4 {[%clk 0:00:04.1]}
61. Ra1 {[%clk 0:00:04.2]} 61... Nf5 {[%clk 0:00:05]} 62. Rg1+ {[%clk
0:00:04.1]} 62... Kf3 {[%clk 0:00:05.2]} 63. Rh8 {[%clk 0:00:04.4]} 63... Ne3+
{[%clk 0:00:05.3]} 64. Kb3 {[%clk 0:00:04.1]} 64... Ng4 {[%clk 0:00:05.8]} 65.
Rxh7 {[%clk 0:00:03.6]} 65... e3 {[%clk 0:00:05.8]} 66. Rg7 {[%clk 0:00:03.5]}
66... e2 {[%clk 0:00:05.7]} 67. Rxg6 {[%clk 0:00:03.7]} 67... Be3 {[%clk
0:00:05.9]} 68. Ra1 {[%clk 0:00:02.5]} 68... d4 {[%clk 0:00:04.9]} 69. Rg8
{[%clk 0:00:02.3]} 69... d3 {[%clk 0:00:05.1]} 70. Rf8+ {[%clk 0:00:03.2]} 70...
Kg2 {[%clk 0:00:04.7]} 71. g6 {[%clk 0:00:03.8]} 71... d2 {[%clk 0:00:04.5]} 72.
g7 {[%clk 0:00:04.2]} 72... d1=Q+ {[%clk 0:00:05.3]} 73. Kb2 {[%clk 0:00:03.1]}
73... Qd4+ {[%clk 0:00:04.9]} 74. Kb3 {[%clk 0:00:03.4]} 74... Qxg7 {[%clk
0:00:05.6]} 75. Rc8 {[%clk 0:00:02.9]} 75... Qxa1 {[%clk 0:00:05.8]} 76. Rc2
{[%clk 0:00:03.8]} 76... Qb1+ {[%clk 0:00:06.2]} 77. Kc3 {[%clk 0:00:03.8]}
77... Qxc2+ {[%clk 0:00:06.7]} 78. Kxc2 {[%clk 0:00:04]} 78... e1=Q {[%clk
0:00:07.4]} 79. Kd3 {[%clk 0:00:04.9]} 79... Qd2+ {[%clk 0:00:07.8]} 80. Ke4
{[%clk 0:00:05.7]} 80... Nf2+ {[%clk 0:00:08.2]} 81. Kf5 {[%clk 0:00:06.6]}
81... Qd3+ {[%clk 0:00:08.3]} 0-1

[Event "Late-Titled-Tuesday-Blitz-January-23-2024"]
[Site "Chess.com"]
[Date "2024.01.23"]
[Round "7"]
[White "Felix-Rose"]
[Black "szachmistrz2500"]
[Result "0-1"]
[WhiteElo "2323"]
[BlackElo "2501"]
[TimeControl "180+1"]
[EndTime "15:10:29 PST"]
[Termination "szachmistrz2500 won by resignation"]

1. d4 {[%clk 0:02:59.2]} 1... Nf6 {[%clk 0:02:58.4]} 2. Nf3 {[%clk 0:02:59.5]}
2... c5 {[%clk 0:02:58.2]} 3. e3 {[%clk 0:02:58]} 3... d5 {[%clk 0:02:56.7]} 4.
Be2 {[%clk 0:02:51.7]} 4... g6 {[%clk 0:02:56]} 5. O-O {[%clk 0:02:51]} 5... Bg7
{[%clk 0:02:56.3]} 6. c3 {[%clk 0:02:49.9]} 6... Qc7 {[%clk 0:02:52.9]} 7. h3
{[%clk 0:02:49.6]} 7... O-O {[%clk 0:02:52.3]} 8. Bd3 {[%clk 0:02:48.2]} 8...
Nbd7 {[%clk 0:02:51.8]} 9. Nbd2 {[%clk 0:02:47.4]} 9... e5 {[%clk 0:02:51.6]}
10. Nxe5 {[%clk 0:02:34.1]} 10... Nxe5 {[%clk 0:02:52.5]} 11. dxe5 {[%clk
0:02:34.4]} 11... Qxe5 {[%clk 0:02:52.2]} 12. Re1 {[%clk 0:02:33.8]} 12... Ne4
{[%clk 0:02:43.7]} 13. Nf3 {[%clk 0:02:22.8]} 13... Qe7 {[%clk 0:02:42.3]} 14.
Qc2 {[%clk 0:02:21.6]} 14... Bf5 {[%clk 0:02:38.1]} 15. g4 {[%clk 0:02:13.2]}
15... Bd7 {[%clk 0:02:33.9]} 16. c4 {[%clk 0:02:13.3]} 16... Bc6 {[%clk
0:02:31.9]} 17. Rb1 {[%clk 0:01:53.7]} 17... dxc4 {[%clk 0:02:22.7]} 18. Bxc4
{[%clk 0:01:50.9]} 18... Nd6 {[%clk 0:02:22.7]} 19. Be2 {[%clk 0:01:49]} 19...
Be4 {[%clk 0:02:22.8]} 0-1

[Event "Late-Titled-Tuesday-Blitz-January-23-2024"]
[Site "Chess.com"]
[Date "2024.01.23"]
[Round "7"]
[White "Firouzja2003"]
[Black "Igor_Lysyj"]
[Result "1-0"]
[WhiteElo "3140"]
[BlackElo "2888"]
[TimeControl "180+1"]
[EndTime "15:12:21 PST"]
[Termination "Firouzja2003 won by checkmate"]

1. d4 {[%clk 0:03:00.9]} 1... d5 {[%clk 0:02:59.1]} 2. Bg5 {[%clk 0:02:59.3]}
2... c5 {[%clk 0:02:57.8]} 3. e3 {[%clk 0:02:58.4]} 3... cxd4 {[%clk 0:02:56.8]}
4. exd4 {[%clk 0:02:58.5]} 4... Nc6 {[%clk 0:02:57.1]} 5. Nf3 {[%clk 0:02:55.7]}
5... Nf6 {[%clk 0:02:52.7]} 6. Nbd2 {[%clk 0:02:54.4]} 6... Bg4 {[%clk
0:02:51.9]} 7. c3 {[%clk 0:02:51.9]} 7... e6 {[%clk 0:02:52.3]} 8. Qb3 {[%clk
0:02:51.9]} 8... Qb6 {[%clk 0:02:49.8]} 9. Ne5 {[%clk 0:02:51.9]} 9... Nxe5
{[%clk 0:02:25.5]} 10. dxe5 {[%clk 0:02:51.7]} 10... Qxb3 {[%clk 0:02:25.9]} 11.
axb3 {[%clk 0:02:51.4]} 11... Nd7 {[%clk 0:02:26.2]} 12. h3 {[%clk 0:02:50.9]}
12... Bh5 {[%clk 0:02:24.3]} 13. g4 {[%clk 0:02:50.8]} 13... Bg6 {[%clk
0:02:24.4]} 14. f4 {[%clk 0:02:51.7]} 14... f6 {[%clk 0:02:21.7]} 15. exf6
{[%clk 0:02:51.4]} 15... gxf6 {[%clk 0:02:22]} 16. Bh4 {[%clk 0:02:52.2]} 16...
Bd6 {[%clk 0:02:21.9]} 17. Bb5 {[%clk 0:02:52.5]} 17... Bxf4 {[%clk 0:02:01.1]}
18. Bxf6 {[%clk 0:02:52.4]} 18... O-O {[%clk 0:01:55.7]} 19. Bd4 {[%clk
0:02:51.7]} 19... Ne5 {[%clk 0:01:52.3]} 20. Rf1 {[%clk 0:02:49.7]} 20... Nd3+
{[%clk 0:01:47.8]} 21. Ke2 {[%clk 0:02:49.7]} 21... Nxb2 {[%clk 0:01:29.4]} 22.
Bxa7 {[%clk 0:02:40.3]} 22... Be5 {[%clk 0:01:09.9]} 23. Rxf8+ {[%clk
0:02:33.6]} 23... Rxf8 {[%clk 0:01:09.4]} 24. Bd4 {[%clk 0:02:34.1]} 24... Bxd4
{[%clk 0:00:15.8]} 25. cxd4 {[%clk 0:02:35]} 25... Rc8 {[%clk 0:00:16.1]} 26.
Bd7 {[%clk 0:02:32.8]} 26... Rc3 {[%clk 0:00:16]} 27. Bxe6+ {[%clk 0:02:33.2]}
27... Kg7 {[%clk 0:00:15.7]} 28. Bxd5 {[%clk 0:02:33.7]} 28... Rxh3 {[%clk
0:00:15.8]} 29. Ra7 {[%clk 0:02:28]} 29... Kf6 {[%clk 0:00:15.4]} 30. Rxb7
{[%clk 0:02:27]} 30... Rh2+ {[%clk 0:00:15.5]} 31. Ke3 {[%clk 0:02:22.4]} 31...
Nd1+ {[%clk 0:00:15.5]} 32. Kf4 {[%clk 0:02:22.9]} 32... Rxd2 {[%clk 0:00:14.6]}
33. g5# {[%clk 0:02:23.4]} 1-0

[Event "Late-Titled-Tuesday-Blitz-January-23-2024"]
[Site "Chess.com"]
[Date "2024.01.23"]
[Round "7"]
[White "Bigfish1995"]
[Black "Fandorine"]
[Result "0-1"]
[WhiteElo "3124"]
[BlackElo "2990"]
[TimeControl "180+1"]
[EndTime "15:12:38 PST"]
[Termination "Fandorine won on time"]

1. e4 {[%clk 0:00:07.7]} 1... e5 {[%clk 0:02:56.4]} 2. Nf3 {[%clk 0:00:07]} 2...
Nc6 {[%clk 0:02:56.2]} 3. Bb5 {[%clk 0:00:06.2]} 3... a6 {[%clk 0:02:56.1]} 4.
Bxc6 {[%clk 0:00:06.5]} 4... dxc6 {[%clk 0:02:55.4]} 5. d4 {[%clk 0:00:07.1]}
5... exd4 {[%clk 0:02:54.9]} 6. Qxd4 {[%clk 0:00:07.7]} 6... Qxd4 {[%clk
0:02:53.6]} 7. Nxd4 {[%clk 0:00:08.6]} 7... Bd6 {[%clk 0:02:51]} 8. Nc3 {[%clk
0:00:07.7]} 8... Ne7 {[%clk 0:02:51.6]} 9. Be3 {[%clk 0:00:07.3]} 9... Ng6
{[%clk 0:02:48.1]} 10. O-O-O {[%clk 0:00:07.6]} 10... f6 {[%clk 0:02:44.2]} 11.
g3 {[%clk 0:00:07.8]} 11... Bd7 {[%clk 0:02:43.9]} 12. f4 {[%clk 0:00:08.2]}
12... O-O-O {[%clk 0:02:41.8]} 13. Rhe1 {[%clk 0:00:08.4]} 13... Rhe8 {[%clk
0:02:41.3]} 14. Bf2 {[%clk 0:00:08.8]} 14... h5 {[%clk 0:02:36.6]} 15. a3 {[%clk
0:00:08.5]} 15... c5 {[%clk 0:02:30.3]} 16. Nb3 {[%clk 0:00:06.8]} 16... b6
{[%clk 0:02:30.4]} 17. Nd2 {[%clk 0:00:07.4]} 17... Bg4 {[%clk 0:02:28.4]} 18.
Ne2 {[%clk 0:00:07.6]} 18... Kb7 {[%clk 0:02:27.1]} 19. c3 {[%clk 0:00:07.8]}
19... a5 {[%clk 0:02:19.3]} 20. Kc2 {[%clk 0:00:08.3]} 20... a4 {[%clk
0:02:19.5]} 21. Ra1 {[%clk 0:00:08.7]} 21... Bf8 {[%clk 0:02:14.3]} 22. Ng1
{[%clk 0:00:09.1]} 22... Rd7 {[%clk 0:02:08.4]} 23. h3 {[%clk 0:00:09.4]} 23...
Red8 {[%clk 0:02:07.5]} 24. Nf1 {[%clk 0:00:08.3]} 24... Be6 {[%clk 0:02:07.1]}
25. f5 {[%clk 0:00:07.7]} 25... Bb3+ {[%clk 0:02:05.7]} 0-1

[Event "Late-Titled-Tuesday-Blitz-January-23-2024"]
[Site "Chess.com"]
[Date "2024.01.23"]
[Round "7"]
[White "1mbl4"]
[Black "Revan_2002"]
[Result "1-0"]
[WhiteElo "2584"]
[BlackElo "2453"]
[TimeControl "180+1"]
[EndTime "15:12:39 PST"]
[Termination "1mbl4 won by checkmate"]

1. c4 {[%clk 0:02:57.6]} 1... Nf6 {[%clk 0:02:56.7]} 2. Nc3 {[%clk 0:02:55.3]}
2... e5 {[%clk 0:02:56.5]} 3. Nf3 {[%clk 0:02:54.4]} 3... Nc6 {[%clk 0:02:56]}
4. g3 {[%clk 0:02:54.7]} 4... Bb4 {[%clk 0:02:52.3]} 5. Bg2 {[%clk 0:02:54.6]}
5... O-O {[%clk 0:02:52.4]} 6. O-O {[%clk 0:02:54.3]} 6... Bxc3 {[%clk
0:02:51.8]} 7. bxc3 {[%clk 0:02:50.4]} 7... e4 {[%clk 0:02:49.9]} 8. Nd4 {[%clk
0:02:50.3]} 8... Re8 {[%clk 0:02:48.6]} 9. d3 {[%clk 0:02:49.3]} 9... h6 {[%clk
0:02:42.3]} 10. f3 {[%clk 0:02:38.1]} 10... exd3 {[%clk 0:02:28.9]} 11. exd3
{[%clk 0:02:39]} 11... Nxd4 {[%clk 0:02:27.2]} 12. cxd4 {[%clk 0:02:38.4]} 12...
d5 {[%clk 0:02:27.9]} 13. Rb1 {[%clk 0:02:24]} 13... b6 {[%clk 0:02:25.1]} 14.
Bf4 {[%clk 0:02:19.1]} 14... Bf5 {[%clk 0:02:19.9]} 15. Rc1 {[%clk 0:02:17]}
15... Qd7 {[%clk 0:02:17.6]} 16. g4 {[%clk 0:02:15.3]} 16... Bg6 {[%clk
0:02:15.4]} 17. Be5 {[%clk 0:02:09.5]} 17... Nh7 {[%clk 0:02:03.1]} 18. cxd5
{[%clk 0:02:03.5]} 18... Qxd5 {[%clk 0:02:04]} 19. f4 {[%clk 0:01:57.6]} 19...
Qxa2 {[%clk 0:02:01]} 20. f5 {[%clk 0:01:51.3]} 20... Bxf5 {[%clk 0:01:46.9]}
21. gxf5 {[%clk 0:01:46]} 21... Rad8 {[%clk 0:01:46.4]} 22. f6 {[%clk
0:01:44.2]} 22... gxf6 {[%clk 0:01:18.8]} 23. Qg4+ {[%clk 0:01:43.2]} 23... Kf8
{[%clk 0:01:13.4]} 24. Rxf6 {[%clk 0:01:38.3]} 24... Rxe5 {[%clk 0:00:59.4]} 25.
dxe5 {[%clk 0:01:36.2]} 25... Nxf6 {[%clk 0:00:51.3]} 26. exf6 {[%clk
0:01:35.9]} 26... Qe6 {[%clk 0:00:48.2]} 27. Qg7+ {[%clk 0:01:32.6]} 27... Ke8
{[%clk 0:00:48.1]} 28. Bc6+ {[%clk 0:01:32.4]} 28... Rd7 {[%clk 0:00:48.3]} 29.
Qh8# {[%clk 0:01:31.7]} 1-0

[Event "Late-Titled-Tuesday-Blitz-January-23-2024"]
[Site "Chess.com"]
[Date "2024.01.23"]
[Round "7"]
[White "eCztery"]
[Black "hsd2016"]
[Result "1-0"]
[WhiteElo "2438"]
[BlackElo "2288"]
[TimeControl "180+1"]
[EndTime "15:12:39 PST"]
[Termination "eCztery won by resignation"]

1. e4 {[%clk 0:02:08.6]} 1... c5 {[%clk 0:02:57.6]} 2. Nf3 {[%clk 0:02:07.1]}
2... e6 {[%clk 0:02:58.1]} 3. d4 {[%clk 0:02:06.9]} 3... cxd4 {[%clk 0:02:59]}
4. Nxd4 {[%clk 0:02:07.8]} 4... a6 {[%clk 0:02:59.5]} 5. Nc3 {[%clk 0:02:07.7]}
5... Nf6 {[%clk 0:02:58.6]} 6. e5 {[%clk 0:02:04.8]} 6... Ng8 {[%clk 0:02:52.8]}
7. Be2 {[%clk 0:01:57.1]} 7... Nc6 {[%clk 0:02:52.4]} 8. Nxc6 {[%clk 0:01:52]}
8... bxc6 {[%clk 0:02:53.3]} 9. O-O {[%clk 0:01:51.2]} 9... Qc7 {[%clk
0:02:52.7]} 10. Bf4 {[%clk 0:01:45.6]} 10... Rb8 {[%clk 0:02:52.9]} 11. Ne4
{[%clk 0:01:42.9]} 11... f5 {[%clk 0:02:24.6]} 12. Nd6+ {[%clk 0:01:28.3]} 12...
Bxd6 {[%clk 0:02:24.7]} 13. exd6 {[%clk 0:01:28.5]} 13... Qa5 {[%clk 0:02:25.2]}
14. Bh5+ {[%clk 0:01:25.5]} 14... g6 {[%clk 0:02:25.2]} 15. Qd4 {[%clk
0:01:23.7]} 15... gxh5 {[%clk 0:01:17.5]} 16. Qxh8 {[%clk 0:01:15.6]} 16... Kf7
{[%clk 0:01:10.3]} 17. Qxh7+ {[%clk 0:01:13.4]} 17... Kf8 {[%clk 0:01:10.5]} 18.
Qh8 {[%clk 0:00:51.6]} 1-0

[Event "Late-Titled-Tuesday-Blitz-January-23-2024"]
[Site "Chess.com"]
[Date "2024.01.23"]
[Round "7"]
[White "Maect19"]
[Black "Maxfan2008"]
[Result "0-1"]
[WhiteElo "2318"]
[BlackElo "2503"]
[TimeControl "180+1"]
[EndTime "15:12:54 PST"]
[Termination "Maxfan2008 won by checkmate"]

1. c4 {[%clk 0:03:00.9]} 1... Nf6 {[%clk 0:02:57.2]} 2. Nc3 {[%clk 0:03:00.8]}
2... e6 {[%clk 0:02:57.8]} 3. Nf3 {[%clk 0:02:59.1]} 3... d5 {[%clk 0:02:56]} 4.
e3 {[%clk 0:02:58.9]} 4... Be7 {[%clk 0:02:55.2]} 5. b3 {[%clk 0:02:59.2]} 5...
O-O {[%clk 0:02:55.7]} 6. Bb2 {[%clk 0:02:58.5]} 6... c5 {[%clk 0:02:56.1]} 7.
d4 {[%clk 0:02:56.5]} 7... cxd4 {[%clk 0:02:54]} 8. Nxd4 {[%clk 0:02:53.3]} 8...
Nc6 {[%clk 0:02:53.4]} 9. Nxc6 {[%clk 0:02:50.3]} 9... bxc6 {[%clk 0:02:54.3]}
10. Bd3 {[%clk 0:02:50.1]} 10... e5 {[%clk 0:02:48.4]} 11. O-O {[%clk
0:02:46.6]} 11... e4 {[%clk 0:02:48.4]} 12. Be2 {[%clk 0:02:42.1]} 12... Bd6
{[%clk 0:02:46.2]} 13. cxd5 {[%clk 0:02:37]} 13... cxd5 {[%clk 0:02:45.9]} 14.
Qd2 {[%clk 0:02:30.4]} 14... Ng4 {[%clk 0:02:35.4]} 15. Bxg4 {[%clk 0:01:19.3]}
15... Bxg4 {[%clk 0:01:49.4]} 16. Qxd5 {[%clk 0:01:19.1]} 16... Re8 {[%clk
0:01:45]} 17. Qd4 {[%clk 0:00:52.4]} 17... Qc7 {[%clk 0:01:36.2]} 18. Nb5 {[%clk
0:00:47.7]} 18... Bxh2+ {[%clk 0:01:29.8]} 19. Kh1 {[%clk 0:00:47.6]} 19... Qe5
{[%clk 0:01:26.6]} 20. g3 {[%clk 0:00:30.2]} 20... Bf3+ {[%clk 0:01:12.1]} 21.
Kxh2 {[%clk 0:00:30.5]} 21... Qh5+ {[%clk 0:01:11.6]} 22. Kg1 {[%clk 0:00:30.4]}
22... Qh1# {[%clk 0:01:11.6]} 0-1

[Event "Late-Titled-Tuesday-Blitz-January-23-2024"]
[Site "Chess.com"]
[Date "2024.01.23"]
[Round "7"]
[White "Walter_White_Poland"]
[Black "j_coca"]
[Result "0-1"]
[WhiteElo "2335"]
[BlackElo "2516"]
[TimeControl "180+1"]
[EndTime "15:12:58 PST"]
[Termination "j_coca won on time"]

1. Nf3 {[%clk 0:02:52.2]} 1... g6 {[%clk 0:03:00.9]} 2. e4 {[%clk 0:02:49.4]}
2... Bg7 {[%clk 0:03:01.1]} 3. d4 {[%clk 0:02:49.4]} 3... d6 {[%clk 0:03:01.7]}
4. Nc3 {[%clk 0:02:48]} 4... Nh6 {[%clk 0:03:02]} 5. Bg5 {[%clk 0:02:42]} 5...
f6 {[%clk 0:03:01.6]} 6. Bf4 {[%clk 0:02:28]} 6... O-O {[%clk 0:02:59]} 7. Qd2
{[%clk 0:02:25.1]} 7... Nf7 {[%clk 0:02:59.3]} 8. h4 {[%clk 0:02:16.3]} 8... Nc6
{[%clk 0:02:59]} 9. h5 {[%clk 0:02:11.8]} 9... g5 {[%clk 0:02:59.3]} 10. Be3
{[%clk 0:02:11.1]} 10... h6 {[%clk 0:02:58.9]} 11. Bc4 {[%clk 0:01:55.7]} 11...
Kh8 {[%clk 0:02:58.5]} 12. Ng1 {[%clk 0:01:14.3]} 12... e5 {[%clk 0:02:57.7]}
13. Nge2 {[%clk 0:01:12.3]} 13... f5 {[%clk 0:02:56.3]} 14. f3 {[%clk
0:01:04.8]} 14... fxe4 {[%clk 0:02:53.2]} 15. fxe4 {[%clk 0:01:02.3]} 15... exd4
{[%clk 0:02:53.7]} 16. Nxd4 {[%clk 0:01:00]} 16... Nfe5 {[%clk 0:02:54.2]} 17.
Be2 {[%clk 0:00:53.9]} 17... Ng4 {[%clk 0:02:48.5]} 18. Bg1 {[%clk 0:00:38.2]}
18... Qf6 {[%clk 0:02:42.3]} 19. Nd5 {[%clk 0:00:24.5]} 19... Qe5 {[%clk
0:02:38.9]} 20. O-O-O {[%clk 0:00:17.9]} 20... Nxd4 {[%clk 0:02:38.3]} 21. Bxd4
{[%clk 0:00:17.1]} 21... Qxd4 {[%clk 0:02:38.2]} 22. Qxd4 {[%clk 0:00:17.1]}
22... Bxd4 {[%clk 0:02:38.7]} 23. Rxd4 {[%clk 0:00:17.4]} 23... Nf2 {[%clk
0:02:18.5]} 24. Rf1 {[%clk 0:00:16.3]} 24... Bg4 {[%clk 0:02:18.6]} 25. Bxg4
{[%clk 0:00:14.6]} 25... Nxg4 {[%clk 0:02:18.8]} 26. Rxf8+ {[%clk 0:00:14.4]}
26... Rxf8 {[%clk 0:02:19.7]} 27. Nxc7 {[%clk 0:00:14.1]} 27... Ne3 {[%clk
0:02:19.8]} 28. b3 {[%clk 0:00:11.3]} 28... Nxg2 {[%clk 0:02:17.6]} 29. Rxd6
{[%clk 0:00:11.3]} 29... Kg7 {[%clk 0:02:15.3]} 30. Rg6+ {[%clk 0:00:11]} 30...
Kh7 {[%clk 0:02:15.5]} 31. Ne6 {[%clk 0:00:10]} 31... Rf1+ {[%clk 0:02:14]} 32.
Kb2 {[%clk 0:00:09.7]} 32... Nf4 {[%clk 0:02:12.8]} 33. Rg7+ {[%clk 0:00:09]}
33... Kh8 {[%clk 0:02:12.7]} 34. Re7 {[%clk 0:00:01.3]} 34... Nxh5 {[%clk
0:02:09.4]} 35. Re8+ {[%clk 0:00:01.1]} 35... Kh7 {[%clk 0:02:09.4]} 36. Re7+
{[%clk 0:00:01.7]} 36... Kg6 {[%clk 0:02:08.8]} 0-1

[Event "Late-Titled-Tuesday-Blitz-January-23-2024"]
[Site "Chess.com"]
[Date "2024.01.23"]
[Round "7"]
[White "MusicCityMaster"]
[Black "Cluke86"]
[Result "1-0"]
[WhiteElo "2468"]
[BlackElo "2267"]
[TimeControl "180+1"]
[EndTime "15:13:01 PST"]
[Termination "MusicCityMaster won by checkmate"]

1. d4 {[%clk 0:03:00.9]} 1... d6 {[%clk 0:02:59.6]} 2. Nf3 {[%clk 0:03:00.5]}
2... Nf6 {[%clk 0:02:59.5]} 3. c4 {[%clk 0:03:00.9]} 3... g6 {[%clk 0:02:54.2]}
4. Nc3 {[%clk 0:03:01]} 4... Bf5 {[%clk 0:02:53.9]} 5. g3 {[%clk 0:02:47.3]}
5... Ne4 {[%clk 0:02:53.1]} 6. Nxe4 {[%clk 0:02:46.2]} 6... Bxe4 {[%clk
0:02:53]} 7. Bg2 {[%clk 0:02:46.9]} 7... Bg7 {[%clk 0:02:51.2]} 8. O-O {[%clk
0:02:47]} 8... O-O {[%clk 0:02:49.2]} 9. b3 {[%clk 0:02:44]} 9... c5 {[%clk
0:02:48.4]} 10. Bb2 {[%clk 0:02:40.5]} 10... Nc6 {[%clk 0:02:48.4]} 11. e3
{[%clk 0:02:36.7]} 11... Qb6 {[%clk 0:02:30.2]} 12. dxc5 {[%clk 0:02:36.1]}
12... dxc5 {[%clk 0:02:26.1]} 13. Bxg7 {[%clk 0:02:35.9]} 13... Kxg7 {[%clk
0:02:26.4]} 14. Qd2 {[%clk 0:02:31.8]} 14... Rad8 {[%clk 0:02:22.7]} 15. Qb2+
{[%clk 0:02:31.6]} 15... f6 {[%clk 0:02:19.5]} 16. Rfd1 {[%clk 0:02:27.5]} 16...
e5 {[%clk 0:02:10.2]} 17. Ng5 {[%clk 0:02:18.1]} 17... fxg5 {[%clk 0:01:53.4]}
18. Bxe4 {[%clk 0:02:16.9]} 18... Qc7 {[%clk 0:01:45.7]} 19. Rd5 {[%clk
0:02:05]} 19... Rxd5 {[%clk 0:01:42.6]} 20. cxd5 {[%clk 0:01:57.7]} 20... Ne7
{[%clk 0:01:42.1]} 21. Rd1 {[%clk 0:01:47.7]} 21... Qd6 {[%clk 0:01:41.7]} 22.
Qc3 {[%clk 0:01:43.9]} 22... b6 {[%clk 0:01:36.7]} 23. a4 {[%clk 0:01:41.3]}
23... a5 {[%clk 0:01:30.3]} 24. f4 {[%clk 0:01:40.9]} 24... gxf4 {[%clk
0:01:29.1]} 25. exf4 {[%clk 0:01:41.3]} 25... c4 {[%clk 0:01:05]} 26. Qxe5+
{[%clk 0:01:37.4]} 26... Qxe5 {[%clk 0:01:03.7]} 27. fxe5 {[%clk 0:01:37.8]}
27... cxb3 {[%clk 0:01:03.2]} 28. d6 {[%clk 0:01:37.1]} 28... Nf5 {[%clk
0:01:02.1]} 29. Bxf5 {[%clk 0:01:32.5]} 29... gxf5 {[%clk 0:01:02]} 30. e6
{[%clk 0:01:25.8]} 30... b2 {[%clk 0:00:52.9]} 31. e7 {[%clk 0:01:22.6]} 31...
Rc8 {[%clk 0:00:52.6]} 32. d7 {[%clk 0:01:13.5]} 32... Rc1 {[%clk 0:00:52.9]}
33. d8=Q {[%clk 0:01:13.4]} 33... b1=Q {[%clk 0:00:50.6]} 34. Qf8+ {[%clk
0:01:12.9]} 34... Kg6 {[%clk 0:00:49.5]} 35. e8=Q+ {[%clk 0:01:13.2]} 35... Kg5
{[%clk 0:00:48.7]} 36. Qg7# {[%clk 0:01:12.2]} 1-0